[Event "Early-Titled-Tuesday-Blitz-February-27-2024"]
[Site "Chess.com"]
[Date "2024.02.27"]
[Round "2"]
[White "AlexPapasimakopoulos"]
[Black "ImportedItalianMaple"]
[Result "0-1"]
[WhiteElo "2752"]
[BlackElo "2556"]
[TimeControl "180+1"]
[EndTime "8:16:49 PST"]
[Termination "ImportedItalianMaple won by resignation"]

1. d4 {[%clk 0:02:53]} 1... g6 {[%clk 0:02:59.9]} 2. e4 {[%clk 0:02:52.2]} 2...
Bg7 {[%clk 0:03:00.3]} 3. c4 {[%clk 0:02:52.8]} 3... d5 {[%clk 0:03:00.9]} 4.
cxd5 {[%clk 0:02:52.3]} 4... c6 {[%clk 0:03:00.2]} 5. dxc6 {[%clk 0:02:47]} 5...
Nxc6 {[%clk 0:03:00.4]} 6. d5 {[%clk 0:02:47.1]} 6... Nd4 {[%clk 0:02:54.2]} 7.
Ne2 {[%clk 0:02:34]} 7... e5 {[%clk 0:02:45.7]} 8. Nbc3 {[%clk 0:02:24.3]} 8...
Nf6 {[%clk 0:02:37.9]} 9. Nxd4 {[%clk 0:02:19.1]} 9... exd4 {[%clk 0:02:38.8]}
10. Bb5+ {[%clk 0:02:14.4]} 10... Bd7 {[%clk 0:02:38.6]} 11. Qxd4 {[%clk
0:02:12]} 11... O-O {[%clk 0:02:37.9]} 12. O-O {[%clk 0:02:10.5]} 12... Bxb5
{[%clk 0:02:32.3]} 13. Nxb5 {[%clk 0:02:10]} 13... Re8 {[%clk 0:02:33]} 14. e5
{[%clk 0:01:58.7]} 14... Nxd5 {[%clk 0:02:18.9]} 15. f4 {[%clk 0:01:58.5]} 15...
a6 {[%clk 0:02:12.3]} 16. Nc3 {[%clk 0:01:44.6]} 16... Nxc3 {[%clk 0:02:12.2]}
17. bxc3 {[%clk 0:01:45]} 17... Rc8 {[%clk 0:02:06]} 18. Be3 {[%clk 0:01:43.2]}
18... Qc7 {[%clk 0:02:05]} 19. Rac1 {[%clk 0:01:30.7]} 19... Red8 {[%clk
0:02:02.8]} 20. Qb6 {[%clk 0:01:30.6]} 20... Rd3 {[%clk 0:01:55.3]} 21. Qxc7
{[%clk 0:01:28.3]} 21... Rxc7 {[%clk 0:01:55.4]} 22. Bd4 {[%clk 0:01:28.8]}
22... Rd2 {[%clk 0:01:49.7]} 23. Rf2 {[%clk 0:01:28.2]} 23... Rxd4 {[%clk
0:01:46.1]} 24. cxd4 {[%clk 0:01:16.4]} 24... Rxc1+ {[%clk 0:01:46]} 25. Rf1
{[%clk 0:01:17.3]} 25... Rxf1+ {[%clk 0:01:39]} 26. Kxf1 {[%clk 0:01:18.2]}
26... Kf8 {[%clk 0:01:39.1]} 27. Ke2 {[%clk 0:01:18.6]} 27... Ke7 {[%clk
0:01:39.3]} 28. Kd3 {[%clk 0:01:18.1]} 28... Kd7 {[%clk 0:01:39.9]} 29. d5
{[%clk 0:01:18.2]} 29... Bf8 {[%clk 0:01:39]} 30. g4 {[%clk 0:01:17.2]} 30...
Bc5 {[%clk 0:01:33.5]} 31. Ke4 {[%clk 0:01:16.4]} 31... b5 {[%clk 0:01:31.2]}
32. h4 {[%clk 0:01:16.6]} 32... a5 {[%clk 0:01:31.1]} 33. h5 {[%clk 0:01:17.1]}
33... a4 {[%clk 0:01:27.3]} 34. f5 {[%clk 0:01:14.8]} 34... b4 {[%clk
0:01:23.8]} 35. Kd3 {[%clk 0:01:15.1]} 35... b3 {[%clk 0:00:54]} 36. axb3 {[%clk
0:01:13.7]} 36... axb3 {[%clk 0:00:54.9]} 37. hxg6 {[%clk 0:01:11.7]} 37... hxg6
{[%clk 0:00:53.3]} 38. e6+ {[%clk 0:01:11.3]} 38... fxe6 {[%clk 0:00:27.6]} 39.
dxe6+ {[%clk 0:01:12.2]} 39... Ke7 {[%clk 0:00:27.8]} 40. Kc3 {[%clk 0:01:07.2]}
40... g5 {[%clk 0:00:20.6]} 41. Kxb3 {[%clk 0:01:07]} 41... Kd6 {[%clk
0:00:19.1]} 42. Kc4 {[%clk 0:01:07.3]} 42... Ba3 {[%clk 0:00:19]} 43. Kb5 {[%clk
0:01:05.4]} 43... Bb2 {[%clk 0:00:19.1]} 44. Kb6 {[%clk 0:01:05.7]} 44... Bf6
{[%clk 0:00:19.8]} 45. Kb7 {[%clk 0:01:05.9]} 45... Ke5 {[%clk 0:00:19.2]} 46.
Kc6 {[%clk 0:01:05.3]} 46... Kf4 {[%clk 0:00:19.7]} 47. Kd7 {[%clk 0:01:01.9]}
47... Kxg4 {[%clk 0:00:20.2]} 48. e7 {[%clk 0:01:01.6]} 48... Bxe7 {[%clk
0:00:20.8]} 49. Ke6 {[%clk 0:01:01]} 49... Kf4 {[%clk 0:00:19.3]} 50. Kxe7
{[%clk 0:00:59]} 50... Kxf5 {[%clk 0:00:19.5]} 51. Kd6 {[%clk 0:00:59.6]} 51...
Kf4 {[%clk 0:00:20]} 52. Kd5 {[%clk 0:01:00.5]} 52... g4 {[%clk 0:00:20.7]} 53.
Kd4 {[%clk 0:01:01.4]} 53... Kf3 {[%clk 0:00:21.4]} 54. Kd3 {[%clk 0:01:02.3]}
54... g3 {[%clk 0:00:22.3]} 55. Kd2 {[%clk 0:01:02.7]} 55... Kf2 {[%clk
0:00:23]} 56. Kd3 {[%clk 0:01:03.3]} 56... g2 {[%clk 0:00:23.9]} 57. Ke4 {[%clk
0:01:04.2]} 57... g1=Q {[%clk 0:00:24.5]} 58. Kf4 {[%clk 0:01:05.1]} 58... Qe1
{[%clk 0:00:24.9]} 0-1

[Event "Early-Titled-Tuesday-Blitz-February-27-2024"]
[Site "Chess.com"]
[Date "2024.02.27"]
[Round "2"]
[White "ErikRonka"]
[Black "conformalfunction"]
[Result "0-1"]
[WhiteElo "2559"]
[BlackElo "2384"]
[TimeControl "180+1"]
[EndTime "8:16:49 PST"]
[Termination "conformalfunction won by checkmate"]

1. e4 {[%clk 0:03:00.9]} 1... e6 {[%clk 0:02:57.4]} 2. d4 {[%clk 0:03:00.6]}
2... d5 {[%clk 0:02:53.2]} 3. Qe2 {[%clk 0:02:59.1]} 3... dxe4 {[%clk 0:02:45]}
4. Qxe4 {[%clk 0:03:00]} 4... Nf6 {[%clk 0:02:44.3]} 5. Qd3 {[%clk 0:02:58.5]}
5... Be7 {[%clk 0:02:39.7]} 6. Nc3 {[%clk 0:02:58.4]} 6... O-O {[%clk
0:02:35.5]} 7. Bd2 {[%clk 0:02:59]} 7... Nc6 {[%clk 0:02:22.8]} 8. Nf3 {[%clk
0:02:57.5]} 8... Nb4 {[%clk 0:02:11.6]} 9. Qc4 {[%clk 0:02:54.6]} 9... Nxc2+
{[%clk 0:02:10.6]} 10. Kd1 {[%clk 0:02:53.5]} 10... Nxa1 {[%clk 0:02:10.8]} 11.
Bd3 {[%clk 0:02:53.5]} 11... a6 {[%clk 0:02:02]} 12. Ke2 {[%clk 0:02:52.8]}
12... b5 {[%clk 0:02:01.4]} 13. Qc6 {[%clk 0:02:52.6]} 13... Rb8 {[%clk
0:01:54.6]} 14. Ne4 {[%clk 0:02:44.6]} 14... Bb7 {[%clk 0:01:47.4]} 15. Nxf6+
{[%clk 0:02:43.7]} 15... Bxf6 {[%clk 0:01:48.3]} 16. Qc1 {[%clk 0:02:38.9]}
16... Bxf3+ {[%clk 0:01:35.4]} 17. gxf3 {[%clk 0:02:39.8]} 17... Bxd4 {[%clk
0:01:26.2]} 18. Qxa1 {[%clk 0:02:38]} 18... c5 {[%clk 0:01:26]} 19. Qb1 {[%clk
0:02:36.1]} 19... g6 {[%clk 0:01:24.5]} 20. h4 {[%clk 0:02:35.8]} 20... c4
{[%clk 0:01:23.9]} 21. Be4 {[%clk 0:02:35.5]} 21... Bg7 {[%clk 0:01:18.9]} 22.
h5 {[%clk 0:02:33.3]} 22... Qd6 {[%clk 0:01:09.9]} 23. Qg1 {[%clk 0:02:33.5]}
23... Rfd8 {[%clk 0:01:08.6]} 24. Bg5 {[%clk 0:02:30.8]} 24... Rd7 {[%clk
0:00:59.2]} 25. hxg6 {[%clk 0:02:29.2]} 25... hxg6 {[%clk 0:00:55]} 26. Qg2
{[%clk 0:02:22.8]} 26... Qe5 {[%clk 0:00:39.5]} 27. f4 {[%clk 0:01:53.5]} 27...
Qxb2+ {[%clk 0:00:37]} 28. Kf3 {[%clk 0:01:54.1]} 28... Qc3+ {[%clk 0:00:32]}
29. Kg4 {[%clk 0:01:52.9]} 29... f5+ {[%clk 0:00:32]} 30. Kh4 {[%clk 0:01:53]}
30... Kf7 {[%clk 0:00:22.5]} 31. Bf3 {[%clk 0:01:50.4]} 31... Rh8+ {[%clk
0:00:21.4]} 32. Kg3 {[%clk 0:01:51.1]} 32... Rxh1 {[%clk 0:00:18.5]} 33. Qxh1
{[%clk 0:01:52]} 33... Rd3 {[%clk 0:00:14.8]} 34. Qh7 {[%clk 0:00:59.2]} 34...
Rxf3+ {[%clk 0:00:13.1]} 35. Kg2 {[%clk 0:01:00.1]} 35... Rd3 {[%clk 0:00:07.6]}
36. Bh6 {[%clk 0:00:57.8]} 36... Rd2 {[%clk 0:00:07.6]} 37. Kg1 {[%clk
0:00:48.4]} 37... Qd4 {[%clk 0:00:07.3]} 38. Kh1 {[%clk 0:00:44.1]} 38... Rd1+
{[%clk 0:00:06.5]} 39. Kg2 {[%clk 0:00:44.3]} 39... Rd2 {[%clk 0:00:07.1]} 40.
Kh1 {[%clk 0:00:44.8]} 40... Qe4+ {[%clk 0:00:07.5]} 41. Kg1 {[%clk 0:00:45]}
41... Qe1+ {[%clk 0:00:07.5]} 42. Kh2 {[%clk 0:00:45.5]} 42... Qxf2+ {[%clk
0:00:08]} 43. Kh3 {[%clk 0:00:46.2]} 43... Qg2+ {[%clk 0:00:08.6]} 44. Kh4
{[%clk 0:00:46.6]} 44... Qg4# {[%clk 0:00:09.3]} 0-1

[Event "Early-Titled-Tuesday-Blitz-February-27-2024"]
[Site "Chess.com"]
[Date "2024.02.27"]
[Round "2"]
[White "manitodeplomo"]
[Black "wonderfultime"]
[Result "0-1"]
[WhiteElo "2651"]
[BlackElo "3083"]
[TimeControl "180+1"]
[EndTime "8:16:50 PST"]
[Termination "wonderfultime won on time"]

1. d4 {[%clk 0:03:00.9]} 1... d5 {[%clk 0:02:58.3]} 2. c4 {[%clk 0:03:00.4]}
2... e6 {[%clk 0:02:58.6]} 3. Nf3 {[%clk 0:03:00.2]} 3... Nf6 {[%clk 0:02:58.7]}
4. Nc3 {[%clk 0:02:59.4]} 4... Nbd7 {[%clk 0:02:53.9]} 5. c5 {[%clk 0:02:55.1]}
5... c6 {[%clk 0:02:17.4]} 6. Bf4 {[%clk 0:02:54.5]} 6... Nh5 {[%clk 0:02:17.6]}
7. e3 {[%clk 0:02:45.8]} 7... Nxf4 {[%clk 0:02:17.5]} 8. exf4 {[%clk 0:02:45.8]}
8... g6 {[%clk 0:02:13]} 9. g3 {[%clk 0:02:42.1]} 9... Bg7 {[%clk 0:02:13.3]}
10. Rc1 {[%clk 0:02:36.7]} 10... O-O {[%clk 0:02:03.6]} 11. h4 {[%clk
0:02:25.5]} 11... b6 {[%clk 0:01:53.6]} 12. b4 {[%clk 0:02:24.2]} 12... bxc5
{[%clk 0:01:48.8]} 13. bxc5 {[%clk 0:02:23.4]} 13... Qa5 {[%clk 0:01:48.1]} 14.
Qd2 {[%clk 0:02:22.7]} 14... Rb8 {[%clk 0:01:44.5]} 15. h5 {[%clk 0:02:07.5]}
15... Qa3 {[%clk 0:01:40.4]} 16. hxg6 {[%clk 0:02:05]} 16... hxg6 {[%clk
0:01:39.5]} 17. Be2 {[%clk 0:00:56.5]} 17... Rb2 {[%clk 0:01:12.7]} 18. Qe3
{[%clk 0:00:56.1]} 18... Nf6 {[%clk 0:01:13.2]} 19. Ne5 {[%clk 0:00:54]} 19...
Ba6 {[%clk 0:01:07.8]} 20. g4 {[%clk 0:00:14.5]} 20... Rc8 {[%clk 0:00:43.6]}
21. f5 {[%clk 0:00:11.1]} 21... Ne4 {[%clk 0:00:28.5]} 22. Nxe4 {[%clk
0:00:08.8]} 22... Rxe2+ {[%clk 0:00:27.8]} 23. Qxe2 {[%clk 0:00:06.6]} 23...
Bxe2 {[%clk 0:00:25.3]} 24. Kxe2 {[%clk 0:00:05.3]} 24... dxe4 {[%clk
0:00:25.6]} 25. fxe6 {[%clk 0:00:03.4]} 25... Bxe5 {[%clk 0:00:24.9]} 26. exf7+
{[%clk 0:00:02.9]} 26... Kxf7 {[%clk 0:00:24.3]} 27. dxe5 {[%clk 0:00:03.8]}
27... Qf3+ {[%clk 0:00:23.1]} 0-1

[Event "Early-Titled-Tuesday-Blitz-February-27-2024"]
[Site "Chess.com"]
[Date "2024.02.27"]
[Round "2"]
[White "Salem-AR"]
[Black "superchthonic"]
[Result "1-0"]
[WhiteElo "3039"]
[BlackElo "2640"]
[TimeControl "180+1"]
[EndTime "8:16:53 PST"]
[Termination "Salem-AR won by resignation"]

1. d4 {[%clk 0:02:43.7]} 1... d5 {[%clk 0:02:59.7]} 2. Nf3 {[%clk 0:02:42.7]}
2... Nf6 {[%clk 0:02:59.6]} 3. Bf4 {[%clk 0:02:43.1]} 3... c5 {[%clk 0:02:58.7]}
4. e3 {[%clk 0:02:43.3]} 4... Nc6 {[%clk 0:02:59]} 5. Nbd2 {[%clk 0:02:43]} 5...
cxd4 {[%clk 0:02:57.1]} 6. exd4 {[%clk 0:02:42.8]} 6... Bf5 {[%clk 0:02:56.9]}
7. c3 {[%clk 0:02:39.2]} 7... e6 {[%clk 0:02:54]} 8. Qb3 {[%clk 0:02:36.4]} 8...
Qc8 {[%clk 0:02:40.7]} 9. Nh4 {[%clk 0:02:33.6]} 9... Bg4 {[%clk 0:02:36.4]} 10.
Bd3 {[%clk 0:02:30.6]} 10... Be7 {[%clk 0:02:30.2]} 11. Nhf3 {[%clk 0:02:30.1]}
11... Bh5 {[%clk 0:02:27.5]} 12. O-O {[%clk 0:02:28.6]} 12... Bg6 {[%clk
0:02:27.5]} 13. Bxg6 {[%clk 0:02:28.7]} 13... hxg6 {[%clk 0:02:27.4]} 14. Rfe1
{[%clk 0:02:28.9]} 14... Qd7 {[%clk 0:02:00.9]} 15. a4 {[%clk 0:02:12.9]} 15...
O-O {[%clk 0:01:54.4]} 16. h4 {[%clk 0:02:12.1]} 16... Bd6 {[%clk 0:01:54.4]}
17. Bxd6 {[%clk 0:02:05.4]} 17... Qxd6 {[%clk 0:01:54.5]} 18. g3 {[%clk
0:02:04.7]} 18... b6 {[%clk 0:01:44.1]} 19. Kg2 {[%clk 0:01:58.1]} 19... Rfe8
{[%clk 0:01:39.3]} 20. Ne5 {[%clk 0:01:57.8]} 20... Nd7 {[%clk 0:01:39.3]} 21.
Nxd7 {[%clk 0:01:39.7]} 21... Qxd7 {[%clk 0:01:39.4]} 22. Nf3 {[%clk 0:01:40.2]}
22... f6 {[%clk 0:01:34.6]} 23. Re2 {[%clk 0:01:26.7]} 23... Re7 {[%clk
0:01:33.3]} 24. Rh1 {[%clk 0:01:22.2]} 24... Na5 {[%clk 0:01:28.2]} 25. Qc2
{[%clk 0:01:21.7]} 25... Kf7 {[%clk 0:01:28.5]} 26. h5 {[%clk 0:01:19.8]} 26...
gxh5 {[%clk 0:01:28.8]} 27. Rxh5 {[%clk 0:01:20.6]} 27... Ree8 {[%clk 0:01:11]}
28. Nh4 {[%clk 0:01:07.2]} 28... Rg8 {[%clk 0:01:11.3]} 29. Rh7 {[%clk 0:00:33]}
29... Nc4 {[%clk 0:01:08.1]} 30. Qg6+ {[%clk 0:00:31.8]} 30... Kf8 {[%clk
0:01:08.3]} 31. Qxf6+ {[%clk 0:00:24]} 31... gxf6 {[%clk 0:00:49.6]} 32. Rxd7
{[%clk 0:00:24.9]} 32... Re8 {[%clk 0:00:44.8]} 33. Rxa7 {[%clk 0:00:23.6]}
33... Rg7 {[%clk 0:00:41.5]} 34. Rxg7 {[%clk 0:00:23.4]} 34... Kxg7 {[%clk
0:00:41.4]} 35. Nf5+ {[%clk 0:00:23.4]} 35... Kf7 {[%clk 0:00:40.1]} 36. b3
{[%clk 0:00:18]} 1-0

[Event "Early-Titled-Tuesday-Blitz-February-27-2024"]
[Site "Chess.com"]
[Date "2024.02.27"]
[Round "2"]
[White "Semen16"]
[Black "JERO-8914"]
[Result "1-0"]
[WhiteElo "2726"]
[BlackElo "2438"]
[TimeControl "180+1"]
[EndTime "8:16:56 PST"]
[Termination "Semen16 won by resignation"]

1. e4 {[%clk 0:03:00.9]} 1... c6 {[%clk 0:02:59.9]} 2. d4 {[%clk 0:03:00.1]}
2... d5 {[%clk 0:03:00.4]} 3. Nc3 {[%clk 0:03:00.3]} 3... dxe4 {[%clk
0:03:00.4]} 4. Nxe4 {[%clk 0:03:00.6]} 4... Nd7 {[%clk 0:03:01.2]} 5. Nf3 {[%clk
0:02:58.5]} 5... Ngf6 {[%clk 0:03:00.1]} 6. Nc3 {[%clk 0:02:58.8]} 6... e6
{[%clk 0:02:58.6]} 7. Bf4 {[%clk 0:02:58.7]} 7... Bb4 {[%clk 0:02:52.7]} 8. Bd3
{[%clk 0:02:56.7]} 8... Nd5 {[%clk 0:02:50.4]} 9. Bd2 {[%clk 0:02:56.1]} 9...
N7f6 {[%clk 0:02:47.7]} 10. Ne4 {[%clk 0:02:34.4]} 10... Nxe4 {[%clk 0:02:40.1]}
11. Bxe4 {[%clk 0:02:33.7]} 11... Bxd2+ {[%clk 0:02:36]} 12. Qxd2 {[%clk
0:02:32.8]} 12... O-O {[%clk 0:02:34.9]} 13. O-O-O {[%clk 0:02:30.8]} 13... Qf6
{[%clk 0:02:33.5]} 14. Kb1 {[%clk 0:02:29.5]} 14... b6 {[%clk 0:02:27.4]} 15.
Ne5 {[%clk 0:02:28.7]} 15... c5 {[%clk 0:02:04.5]} 16. Ng4 {[%clk 0:02:25.3]}
16... Qxd4 {[%clk 0:01:59.4]} 17. Qxd4 {[%clk 0:02:17]} 17... cxd4 {[%clk
0:01:54.7]} 18. Rxd4 {[%clk 0:02:13.3]} 18... f5 {[%clk 0:01:51.7]} 19. Bxd5
{[%clk 0:02:12.1]} 19... exd5 {[%clk 0:01:48.4]} 20. Ne3 {[%clk 0:02:06.6]}
20... Bb7 {[%clk 0:01:45.1]} 21. Nxd5 {[%clk 0:02:06.1]} 21... Rad8 {[%clk
0:01:29.1]} 22. Rhd1 {[%clk 0:02:05.5]} 22... Bxd5 {[%clk 0:01:26.1]} 23. Rxd5
{[%clk 0:02:05.6]} 23... Rxd5 {[%clk 0:01:27]} 24. Rxd5 {[%clk 0:02:06.2]} 24...
Re8 {[%clk 0:01:27.9]} 25. Kc1 {[%clk 0:02:06.5]} 25... g6 {[%clk 0:01:20.2]}
26. Kd2 {[%clk 0:02:05.9]} 26... Re6 {[%clk 0:01:15.6]} 27. Rd7 {[%clk
0:02:05.3]} 27... a5 {[%clk 0:01:09.1]} 28. a4 {[%clk 0:02:04.7]} 28... Re4
{[%clk 0:01:07.3]} 29. b3 {[%clk 0:02:04.6]} 29... Re6 {[%clk 0:01:06.4]} 30.
Kd3 {[%clk 0:02:03.5]} 30... h5 {[%clk 0:01:02.6]} 31. h4 {[%clk 0:01:59.4]}
31... Kf8 {[%clk 0:00:50.6]} 32. g3 {[%clk 0:01:52.9]} 32... Ke8 {[%clk
0:00:47.1]} 33. Rb7 {[%clk 0:01:53.1]} 33... Rd6+ {[%clk 0:00:45]} 34. Kc4
{[%clk 0:01:46.2]} 34... Rd2 {[%clk 0:00:43.7]} 35. c3 {[%clk 0:01:46.6]} 35...
Rxf2 {[%clk 0:00:40.4]} 36. Rxb6 {[%clk 0:01:46.8]} 36... Kf7 {[%clk 0:00:36.9]}
37. b4 {[%clk 0:01:40.7]} 37... f4 {[%clk 0:00:35]} 38. gxf4 {[%clk 0:01:38.1]}
38... Rxf4+ {[%clk 0:00:35.9]} 39. Kb5 {[%clk 0:01:35.2]} 39... axb4 {[%clk
0:00:33.2]} 40. cxb4 {[%clk 0:01:34.9]} 40... Rxh4 {[%clk 0:00:30.8]} 41. a5
{[%clk 0:01:34.6]} 41... Re4 {[%clk 0:00:28.1]} 42. a6 {[%clk 0:01:34.6]} 42...
Re5+ {[%clk 0:00:26.2]} 43. Kc6 {[%clk 0:01:34.4]} 43... Re6+ {[%clk 0:00:24.3]}
44. Kc5 {[%clk 0:01:25.6]} 44... Re5+ {[%clk 0:00:21.4]} 45. Kd4 {[%clk
0:01:23.7]} 45... Re2 {[%clk 0:00:19.7]} 46. Rb5 {[%clk 0:01:19.2]} 46... Ra2
{[%clk 0:00:17.8]} 47. Ra5 {[%clk 0:01:19.4]} 47... Rd2+ {[%clk 0:00:15.5]} 48.
Ke3 {[%clk 0:01:18.2]} 48... Rd8 {[%clk 0:00:16.4]} 49. a7 {[%clk 0:01:17.2]}
49... Ra8 {[%clk 0:00:16.5]} 50. b5 {[%clk 0:01:17.9]} 50... h4 {[%clk
0:00:16.3]} 51. Kf3 {[%clk 0:01:14.5]} 51... h3 {[%clk 0:00:15.7]} 52. Kg3
{[%clk 0:01:14.9]} 52... g5 {[%clk 0:00:12]} 53. b6 {[%clk 0:01:14.7]} 53... g4
{[%clk 0:00:10.3]} 54. b7 {[%clk 0:01:14.7]} 54... Re8 {[%clk 0:00:10.7]} 55.
b8=Q {[%clk 0:01:13.6]} 1-0

[Event "Early-Titled-Tuesday-Blitz-February-27-2024"]
[Site "Chess.com"]
[Date "2024.02.27"]
[Round "2"]
[White "MMKZH22"]
[Black "Brave_spirit12"]
[Result "1-0"]
[WhiteElo "2464"]
[BlackElo "2709"]
[TimeControl "180+1"]
[EndTime "8:16:57 PST"]
[Termination "MMKZH22 won by checkmate"]

1. Nf3 {[%clk 0:03:00]} 1... c5 {[%clk 0:02:56]} 2. c4 {[%clk 0:02:59.9]} 2...
Nc6 {[%clk 0:02:41.1]} 3. d4 {[%clk 0:02:57.8]} 3... cxd4 {[%clk 0:02:38.3]} 4.
Nxd4 {[%clk 0:02:57.9]} 4... g6 {[%clk 0:02:38.1]} 5. e4 {[%clk 0:02:58.1]} 5...
Bg7 {[%clk 0:02:36.1]} 6. Be3 {[%clk 0:02:58.4]} 6... Nf6 {[%clk 0:02:24.9]} 7.
Nc3 {[%clk 0:02:58.4]} 7... d6 {[%clk 0:02:24.7]} 8. Be2 {[%clk 0:02:57.7]} 8...
O-O {[%clk 0:02:23.6]} 9. O-O {[%clk 0:02:57.7]} 9... Bd7 {[%clk 0:02:22.5]} 10.
Qd2 {[%clk 0:02:57.8]} 10... Rc8 {[%clk 0:02:17.5]} 11. f3 {[%clk 0:02:57]}
11... a6 {[%clk 0:02:14.9]} 12. Rac1 {[%clk 0:02:55.9]} 12... e5 {[%clk
0:01:59.3]} 13. Nxc6 {[%clk 0:02:44.5]} 13... Bxc6 {[%clk 0:02:00.2]} 14. Rfd1
{[%clk 0:02:43.9]} 14... Ne8 {[%clk 0:01:41.8]} 15. c5 {[%clk 0:02:43.3]} 15...
Bd7 {[%clk 0:01:30.7]} 16. cxd6 {[%clk 0:02:42.2]} 16... Rc6 {[%clk 0:01:30.9]}
17. Nd5 {[%clk 0:02:32]} 17... Nxd6 {[%clk 0:01:17.3]} 18. Rxc6 {[%clk
0:02:20.2]} 18... Bxc6 {[%clk 0:01:18.2]} 19. Nc3 {[%clk 0:02:14.3]} 19... Qc8
{[%clk 0:00:04.8]} 20. Qxd6 {[%clk 0:02:13.4]} 20... h5 {[%clk 0:00:05.5]} 21.
Nd5 {[%clk 0:02:05.5]} 21... Bxd5 {[%clk 0:00:04.5]} 22. Qxd5 {[%clk 0:02:03.8]}
22... h4 {[%clk 0:00:04.9]} 23. h3 {[%clk 0:02:02.4]} 23... Bf6 {[%clk
0:00:04.5]} 24. Rc1 {[%clk 0:02:01.6]} 24... Qb8 {[%clk 0:00:03.7]} 25. Bb6
{[%clk 0:02:00.7]} 25... Rc8 {[%clk 0:00:02.9]} 26. Rxc8+ {[%clk 0:01:50.2]}
26... Qxc8 {[%clk 0:00:03.8]} 27. Qc5 {[%clk 0:01:50.4]} 27... Qd7 {[%clk
0:00:03.2]} 28. Qd5 {[%clk 0:01:31.7]} 28... Qa4 {[%clk 0:00:03.1]} 29. Bc4
{[%clk 0:01:22.4]} 29... Qe8 {[%clk 0:00:02.1]} 30. Qxb7 {[%clk 0:01:14.3]}
30... Bg5 {[%clk 0:00:02.6]} 31. Bd5 {[%clk 0:01:10.7]} 31... Kg7 {[%clk
0:00:02.2]} 32. Qc6 {[%clk 0:01:08.6]} 32... Qe7 {[%clk 0:00:02.2]} 33. Bc5
{[%clk 0:01:08.1]} 33... Qd8 {[%clk 0:00:02.1]} 34. Qb7 {[%clk 0:01:05.8]} 34...
Qe8 {[%clk 0:00:01.7]} 35. Qc7 {[%clk 0:01:02.1]} 35... Bf4 {[%clk 0:00:02.1]}
36. Qe7 {[%clk 0:00:58.9]} 36... Qa4 {[%clk 0:00:01.7]} 37. Qxf7+ {[%clk
0:00:58.8]} 37... Kh6 {[%clk 0:00:02.4]} 38. Bf8+ {[%clk 0:00:54]} 38... Kg5
{[%clk 0:00:03]} 39. Qe7+ {[%clk 0:00:51.3]} 39... Kh5 {[%clk 0:00:02.9]} 40.
Qh7+ {[%clk 0:00:51.4]} 40... Kg5 {[%clk 0:00:03.5]} 41. Be7# {[%clk 0:00:51.6]}
1-0

[Event "Early-Titled-Tuesday-Blitz-February-27-2024"]
[Site "Chess.com"]
[Date "2024.02.27"]
[Round "2"]
[White "Road2GM3000"]
[Black "BogdanDeac"]
[Result "0-1"]
[WhiteElo "2432"]
[BlackElo "2993"]
[TimeControl "180+1"]
[EndTime "8:16:57 PST"]
[Termination "BogdanDeac won by resignation"]

1. d4 {[%clk 0:03:00.9]} 1... Nf6 {[%clk 0:02:59.6]} 2. c4 {[%clk 0:03:01.5]}
2... g6 {[%clk 0:02:59.5]} 3. Nc3 {[%clk 0:03:02.1]} 3... Bg7 {[%clk 0:02:59.8]}
4. e4 {[%clk 0:03:02.8]} 4... d6 {[%clk 0:03:00.1]} 5. f4 {[%clk 0:03:03.4]}
5... Nc6 {[%clk 0:02:54.9]} 6. Nf3 {[%clk 0:03:03.4]} 6... Bg4 {[%clk
0:02:54.4]} 7. Be3 {[%clk 0:03:03.8]} 7... O-O {[%clk 0:02:45.4]} 8. Be2 {[%clk
0:03:03.7]} 8... Bxf3 {[%clk 0:02:44.9]} 9. Bxf3 {[%clk 0:03:03.7]} 9... e5
{[%clk 0:02:45.3]} 10. fxe5 {[%clk 0:03:03.7]} 10... dxe5 {[%clk 0:02:45.6]} 11.
d5 {[%clk 0:03:04.2]} 11... Nd4 {[%clk 0:02:45.9]} 12. O-O {[%clk 0:02:58.5]}
12... c5 {[%clk 0:02:45.3]} 13. Bg5 {[%clk 0:02:50.3]} 13... h6 {[%clk
0:02:40.7]} 14. Bh4 {[%clk 0:02:50.6]} 14... Qb6 {[%clk 0:02:39.9]} 15. Qd2
{[%clk 0:02:42.5]} 15... Qb4 {[%clk 0:02:24.7]} 16. Be2 {[%clk 0:02:36.7]} 16...
Nxe4 {[%clk 0:02:08.8]} 17. Nxe4 {[%clk 0:02:10.3]} 17... Qxd2 {[%clk
0:02:07.7]} 18. Nxd2 {[%clk 0:02:11.2]} 18... Nxe2+ {[%clk 0:02:08.1]} 19. Kh1
{[%clk 0:02:10.6]} 19... b6 {[%clk 0:01:30.5]} 20. Rae1 {[%clk 0:02:07.6]} 20...
Nf4 {[%clk 0:00:48.1]} 21. Re3 {[%clk 0:01:50.8]} 21... g5 {[%clk 0:00:46]} 22.
Be1 {[%clk 0:01:44]} 22... f5 {[%clk 0:00:45.6]} 23. g3 {[%clk 0:01:38]} 23...
Ng6 {[%clk 0:00:43.9]} 24. Nf3 {[%clk 0:01:37]} 24... e4 {[%clk 0:00:42.2]} 25.
Nd2 {[%clk 0:01:30]} 25... Ne5 {[%clk 0:00:42.1]} 26. b3 {[%clk 0:01:24.5]}
26... Rae8 {[%clk 0:00:39.2]} 27. Nb1 {[%clk 0:01:24.5]} 27... Kh7 {[%clk
0:00:17.4]} 28. Bc3 {[%clk 0:01:24.4]} 28... Kg6 {[%clk 0:00:16.8]} 29. Rg1
{[%clk 0:01:21.8]} 29... h5 {[%clk 0:00:15.1]} 30. Nd2 {[%clk 0:01:13.4]} 30...
Ng4 {[%clk 0:00:14.1]} 31. Bxg7 {[%clk 0:01:10.1]} 31... Nxe3 {[%clk 0:00:13.9]}
32. Bxf8 {[%clk 0:01:10.4]} 32... Rxf8 {[%clk 0:00:14.5]} 33. Re1 {[%clk
0:01:06.3]} 33... Nc2 {[%clk 0:00:14.7]} 34. Re2 {[%clk 0:01:03.4]} 34... Nd4
{[%clk 0:00:14.7]} 35. Re1 {[%clk 0:01:03.3]} 35... Re8 {[%clk 0:00:14.1]} 36.
Kg2 {[%clk 0:01:03.5]} 36... e3 {[%clk 0:00:13.8]} 37. Nf3 {[%clk 0:01:01.8]}
37... f4 {[%clk 0:00:13.8]} 38. h4 {[%clk 0:00:49.9]} 38... g4 {[%clk
0:00:12.5]} 39. Nxd4 {[%clk 0:00:49]} 39... cxd4 {[%clk 0:00:12.2]} 40. gxf4
{[%clk 0:00:49.8]} 40... d3 {[%clk 0:00:12.3]} 0-1